[Event "Late-Titled-Tuesday-Blitz-January-16-2024"]
[Site "Chess.com"]
[Date "2024.01.16"]
[Round "6"]
[White "GMJustin"]
[Black "j_coca"]
[Result "0-1"]
[WhiteElo "2337"]
[BlackElo "2523"]
[TimeControl "180+1"]
[EndTime "15:03:29 PST"]
[Termination "j_coca won on time"]

1. e4 {[%clk 0:02:48.2]} 1... g6 {[%clk 0:03:00.9]} 2. d4 {[%clk 0:02:47.5]}
2... Bg7 {[%clk 0:03:01.3]} 3. Nc3 {[%clk 0:02:47.7]} 3... d6 {[%clk 0:03:01.8]}
4. Be3 {[%clk 0:02:46.4]} 4... Nc6 {[%clk 0:03:02.2]} 5. Nf3 {[%clk 0:02:44.3]}
5... Bg4 {[%clk 0:03:01.5]} 6. d5 {[%clk 0:02:34.7]} 6... Ne5 {[%clk 0:03:00.9]}
7. Be2 {[%clk 0:02:16.3]} 7... Nxf3+ {[%clk 0:02:58.4]} 8. gxf3 {[%clk
0:02:09.7]} 8... Bd7 {[%clk 0:02:58.4]} 9. Qd2 {[%clk 0:02:08.2]} 9... e5 {[%clk
0:02:58.3]} 10. h4 {[%clk 0:01:58.4]} 10... a6 {[%clk 0:02:55.9]} 11. h5 {[%clk
0:01:55.1]} 11... f5 {[%clk 0:02:54.5]} 12. f4 {[%clk 0:01:25.4]} 12... Nf6
{[%clk 0:02:43.2]} 13. h6 {[%clk 0:00:53.8]} 13... Bf8 {[%clk 0:02:42.1]} 14.
fxe5 {[%clk 0:00:53.3]} 14... dxe5 {[%clk 0:02:41.1]} 15. exf5 {[%clk
0:00:46.9]} 15... Bxf5 {[%clk 0:02:38]} 16. O-O-O {[%clk 0:00:45.5]} 16... Bd6
{[%clk 0:02:34.3]} 17. f4 {[%clk 0:00:37.4]} 17... O-O {[%clk 0:02:26.4]} 18.
fxe5 {[%clk 0:00:34.7]} 18... Bxe5 {[%clk 0:02:27.3]} 19. Bd4 {[%clk 0:00:34.4]}
19... Bd6 {[%clk 0:02:17.5]} 20. Bd3 {[%clk 0:00:19.6]} 20... Ng4 {[%clk
0:01:48.2]} 21. Bxf5 {[%clk 0:00:15.1]} 21... Rxf5 {[%clk 0:01:44]} 22. Kb1
{[%clk 0:00:15.4]} 22... Qg5 {[%clk 0:01:32.7]} 23. Qe2 {[%clk 0:00:14.1]} 23...
Ne5 {[%clk 0:01:17.4]} 24. Ne4 {[%clk 0:00:10.3]} 24... Qe7 {[%clk 0:01:16.1]}
25. Rdf1 {[%clk 0:00:07.6]} 25... Raf8 {[%clk 0:01:15]} 26. Rxf5 {[%clk
0:00:06.9]} 26... Rxf5 {[%clk 0:01:15.9]} 27. Rf1 {[%clk 0:00:04.8]} 27... Nd7
{[%clk 0:01:05.7]} 28. Rxf5 {[%clk 0:00:02.9]} 28... gxf5 {[%clk 0:01:06.6]} 29.
Qg2+ {[%clk 0:00:02.4]} 29... Kf8 {[%clk 0:01:04.2]} 30. Qg7+ {[%clk 0:00:02.4]}
30... Qxg7 {[%clk 0:01:00]} 31. hxg7+ {[%clk 0:00:02.8]} 31... Kg8 {[%clk
0:00:58.7]} 32. Ng5 {[%clk 0:00:03]} 32... Be5 {[%clk 0:00:56.6]} 33. Bxe5
{[%clk 0:00:02.7]} 33... Nxe5 {[%clk 0:00:57.5]} 34. Ne6 {[%clk 0:00:02.7]}
34... f4 {[%clk 0:00:56.1]} 35. Nxf4 {[%clk 0:00:02.1]} 35... Kxg7 {[%clk
0:00:56.6]} 36. Ne6+ {[%clk 0:00:01.6]} 36... Kf6 {[%clk 0:00:57.1]} 37. Nxc7
{[%clk 0:00:01.4]} 37... h5 {[%clk 0:00:57.6]} 38. Kc1 {[%clk 0:00:01.6]} 38...
h4 {[%clk 0:00:57.7]} 39. d6 {[%clk 0:00:01.9]} 39... h3 {[%clk 0:00:56.6]} 40.
d7 {[%clk 0:00:01.6]} 40... Nxd7 {[%clk 0:00:56.3]} 41. Nd5+ {[%clk 0:00:01.8]}
41... Ke5 {[%clk 0:00:56.9]} 42. Ne3 {[%clk 0:00:02]} 42... Kf4 {[%clk
0:00:55.7]} 43. Nf1 {[%clk 0:00:01.6]} 43... Kf3 {[%clk 0:00:55.4]} 44. Kd2
{[%clk 0:00:01.8]} 44... Kf2 {[%clk 0:00:55.3]} 45. Ne3 {[%clk 0:00:01.6]} 45...
Ne5 {[%clk 0:00:52.8]} 0-1

[Event "Late-Titled-Tuesday-Blitz-January-16-2024"]
[Site "Chess.com"]
[Date "2024.01.16"]
[Round "6"]
[White "Mariia89"]
[Black "GiorgianBarbosa"]
[Result "0-1"]
[WhiteElo "2214"]
[BlackElo "2479"]
[TimeControl "180+1"]
[EndTime "15:03:29 PST"]
[Termination "GiorgianBarbosa won on time"]

1. d4 {[%clk 0:02:59.6]} 1... Nf6 {[%clk 0:02:57.4]} 2. Nf3 {[%clk 0:02:59.2]}
2... g6 {[%clk 0:02:57.6]} 3. c4 {[%clk 0:02:58.7]} 3... Bg7 {[%clk 0:02:58]} 4.
Nc3 {[%clk 0:02:59.3]} 4... O-O {[%clk 0:02:58.4]} 5. e4 {[%clk 0:03:00]} 5...
d6 {[%clk 0:02:57.6]} 6. Be2 {[%clk 0:03:00.5]} 6... Nbd7 {[%clk 0:02:57.9]} 7.
O-O {[%clk 0:03:01.2]} 7... e5 {[%clk 0:02:55.4]} 8. Re1 {[%clk 0:03:01.6]} 8...
c6 {[%clk 0:02:51]} 9. Bf1 {[%clk 0:03:01.5]} 9... Re8 {[%clk 0:02:50.2]} 10.
Rb1 {[%clk 0:03:00.8]} 10... a5 {[%clk 0:02:48.2]} 11. b3 {[%clk 0:03:00.8]}
11... exd4 {[%clk 0:02:42.5]} 12. Nxd4 {[%clk 0:03:00.8]} 12... Nc5 {[%clk
0:02:40.4]} 13. f3 {[%clk 0:02:56]} 13... Qb6 {[%clk 0:02:32.5]} 14. Be3 {[%clk
0:02:55.9]} 14... Nh5 {[%clk 0:02:24.1]} 15. a3 {[%clk 0:02:42.7]} 15... Qc7
{[%clk 0:02:22.1]} 16. b4 {[%clk 0:02:42.2]} 16... axb4 {[%clk 0:02:23]} 17.
axb4 {[%clk 0:02:42.8]} 17... Ne6 {[%clk 0:02:21.4]} 18. g3 {[%clk 0:02:17.1]}
18... Ra3 {[%clk 0:02:13.7]} 19. Qd2 {[%clk 0:02:08.8]} 19... Qe7 {[%clk
0:01:29.8]} 20. Red1 {[%clk 0:01:44.6]} 20... Rxc3 {[%clk 0:01:25]} 21. Qxc3
{[%clk 0:01:44.1]} 21... c5 {[%clk 0:01:25.6]} 22. bxc5 {[%clk 0:01:37]} 22...
dxc5 {[%clk 0:01:26.5]} 23. Nc6 {[%clk 0:00:27.3]} 23... bxc6 {[%clk 0:01:22.7]}
24. Qa3 {[%clk 0:00:24.6]} 24... Nd4 {[%clk 0:01:20.1]} 25. Bg2 {[%clk
0:00:12.1]} 25... f5 {[%clk 0:01:18]} 26. Bf2 {[%clk 0:00:09]} 26... fxe4 {[%clk
0:01:16]} 27. fxe4 {[%clk 0:00:09.1]} 27... Bg4 {[%clk 0:01:15.6]} 28. Rd3
{[%clk 0:00:06.4]} 28... Be2 {[%clk 0:01:11.6]} 29. Rd2 {[%clk 0:00:05.8]} 29...
Bxc4 {[%clk 0:01:09.4]} 30. Rc1 {[%clk 0:00:04.7]} 30... Ne2+ {[%clk 0:01:09.6]}
31. Rxe2 {[%clk 0:00:04.1]} 31... Bxe2 {[%clk 0:01:10.5]} 32. Bxc5 {[%clk
0:00:03.7]} 32... Qf7 {[%clk 0:01:02.6]} 33. Rc2 {[%clk 0:00:01.5]} 33... Bb5
{[%clk 0:01:01.9]} 34. Rf2 {[%clk 0:00:01.7]} 34... Qe6 {[%clk 0:00:51.7]} 35.
e5 {[%clk 0:00:01.7]} 35... Bxe5 {[%clk 0:00:49.5]} 0-1

[Event "Late-Titled-Tuesday-Blitz-January-16-2024"]
[Site "Chess.com"]
[Date "2024.01.16"]
[Round "6"]
[White "th3d4rkness"]
[Black "MathiasWomacka"]
[Result "0-1"]
[WhiteElo "2100"]
[BlackElo "2546"]
[TimeControl "180+1"]
[EndTime "15:03:30 PST"]
[Termination "MathiasWomacka won by resignation"]

1. d4 {[%clk 0:03:00.9]} 1... Nf6 {[%clk 0:02:46.3]} 2. c4 {[%clk 0:03:00.4]}
2... e6 {[%clk 0:02:45.7]} 3. Nc3 {[%clk 0:02:59.6]} 3... Bb4 {[%clk 0:02:44]}
4. Qb3 {[%clk 0:02:59.9]} 4... c5 {[%clk 0:02:41.9]} 5. a3 {[%clk 0:02:49.4]}
5... Bxc3+ {[%clk 0:02:40]} 6. bxc3 {[%clk 0:02:49.3]} 6... Nc6 {[%clk
0:02:34.6]} 7. Nf3 {[%clk 0:02:47.6]} 7... d6 {[%clk 0:02:28.4]} 8. e3 {[%clk
0:02:46]} 8... O-O {[%clk 0:02:22.3]} 9. Be2 {[%clk 0:02:43.6]} 9... e5 {[%clk
0:02:21.9]} 10. O-O {[%clk 0:02:34.7]} 10... b6 {[%clk 0:02:21.5]} 11. a4 {[%clk
0:02:09.7]} 11... Bg4 {[%clk 0:02:18.8]} 12. d5 {[%clk 0:02:03.3]} 12... Na5
{[%clk 0:02:12.3]} 13. Qa2 {[%clk 0:02:03.4]} 13... e4 {[%clk 0:02:08.1]} 14.
Ne1 {[%clk 0:01:56]} 14... Bxe2 {[%clk 0:02:06.9]} 15. Qxe2 {[%clk 0:01:55.9]}
15... Nd7 {[%clk 0:02:05.2]} 16. f4 {[%clk 0:01:46.7]} 16... exf3 {[%clk
0:01:59.4]} 17. Nxf3 {[%clk 0:01:46.7]} 17... Qe7 {[%clk 0:01:56.6]} 18. Bd2
{[%clk 0:01:42.1]} 18... Qe4 {[%clk 0:01:53.1]} 19. Ng5 {[%clk 0:01:36.9]} 19...
Qxc4 {[%clk 0:01:33.4]} 20. Qh5 {[%clk 0:01:36.3]} 20... Qd3 {[%clk 0:01:22.2]}
21. e4 {[%clk 0:01:26.9]} 21... h6 {[%clk 0:01:15.1]} 22. Nxf7 {[%clk
0:00:52.7]} 22... Qxd2 {[%clk 0:01:08]} 23. Rf2 {[%clk 0:00:43.6]} 23... Qe3
{[%clk 0:01:06.4]} 24. Rf1 {[%clk 0:00:33.5]} 24... Nf6 {[%clk 0:00:49.8]} 25.
Nxh6+ {[%clk 0:00:15.8]} 25... Qxh6 {[%clk 0:00:39.4]} 26. Qf5 {[%clk
0:00:15.8]} 26... Rae8 {[%clk 0:00:32.7]} 27. Kh1 {[%clk 0:00:11.8]} 27... Nc4
{[%clk 0:00:29.6]} 28. e5 {[%clk 0:00:10.8]} 28... Rxe5 {[%clk 0:00:27.9]} 29.
Qd3 {[%clk 0:00:06.2]} 29... Ne3 {[%clk 0:00:26.4]} 30. Rg1 {[%clk 0:00:03.5]}
30... Neg4 {[%clk 0:00:24]} 0-1

[Event "Late-Titled-Tuesday-Blitz-January-16-2024"]
[Site "Chess.com"]
[Date "2024.01.16"]
[Round "6"]
[White "chegueps"]
[Black "xakevicius91"]
[Result "1/2-1/2"]
[WhiteElo "2682"]
[BlackElo "2536"]
[TimeControl "180+1"]
[EndTime "15:03:32 PST"]
[Termination "Game drawn by repetition"]

1. d4 {[%clk 0:03:00.9]} 1... Nf6 {[%clk 0:02:59.6]} 2. c4 {[%clk 0:02:58.5]}
2... e6 {[%clk 0:02:59.9]} 3. Nc3 {[%clk 0:02:58.6]} 3... Bb4 {[%clk 0:03:00.1]}
4. e3 {[%clk 0:02:57.7]} 4... c5 {[%clk 0:02:57]} 5. Ne2 {[%clk 0:02:56]} 5...
cxd4 {[%clk 0:02:55.7]} 6. exd4 {[%clk 0:02:56.9]} 6... d5 {[%clk 0:02:53.6]} 7.
c5 {[%clk 0:02:55.5]} 7... O-O {[%clk 0:02:50.4]} 8. a3 {[%clk 0:02:53.3]} 8...
Ba5 {[%clk 0:02:40.9]} 9. b4 {[%clk 0:02:52.6]} 9... Bc7 {[%clk 0:02:41.4]} 10.
Ng3 {[%clk 0:02:51.7]} 10... e5 {[%clk 0:02:40.9]} 11. Be2 {[%clk 0:02:51.4]}
11... Nc6 {[%clk 0:02:33.2]} 12. Nb5 {[%clk 0:02:37]} 12... Nxd4 {[%clk
0:02:27.5]} 13. Nxd4 {[%clk 0:02:33.8]} 13... exd4 {[%clk 0:02:28.4]} 14. Bb2
{[%clk 0:02:29.8]} 14... Re8 {[%clk 0:02:25.8]} 15. O-O {[%clk 0:02:27.9]} 15...
Ne4 {[%clk 0:02:21.5]} 16. Bxd4 {[%clk 0:02:15.6]} 16... Nxg3 {[%clk 0:02:14.7]}
17. hxg3 {[%clk 0:02:14.4]} 17... Bf5 {[%clk 0:02:11.4]} 18. Bf3 {[%clk
0:02:11.5]} 18... Be4 {[%clk 0:02:11.5]} 19. Re1 {[%clk 0:02:10.5]} 19... Qg5
{[%clk 0:02:08.2]} 20. Bxe4 {[%clk 0:01:57.9]} 20... dxe4 {[%clk 0:02:04.2]} 21.
Be3 {[%clk 0:01:56.2]} 21... Qg6 {[%clk 0:02:00.7]} 22. Qd7 {[%clk 0:01:54.5]}
22... Rac8 {[%clk 0:01:57.6]} 23. Rad1 {[%clk 0:01:49.7]} 23... h5 {[%clk
0:01:49.1]} 24. Qb5 {[%clk 0:01:37.1]} 24... h4 {[%clk 0:01:35.6]} 25. gxh4
{[%clk 0:01:35.9]} 25... Qg4 {[%clk 0:01:35.9]} 26. Rd7 {[%clk 0:01:34.4]} 26...
Red8 {[%clk 0:00:54.7]} 27. Rxd8+ {[%clk 0:01:24.6]} 27... Rxd8 {[%clk
0:00:55.6]} 28. Qxb7 {[%clk 0:00:31.6]} 28... Rd1 {[%clk 0:00:54.9]} 29. Kf1
{[%clk 0:00:32.2]} 29... Be5 {[%clk 0:00:54.4]} 30. g3 {[%clk 0:00:08.8]} 30...
Qh3+ {[%clk 0:00:20.3]} 31. Ke2 {[%clk 0:00:08.9]} 31... Qg4+ {[%clk 0:00:20.4]}
32. Kf1 {[%clk 0:00:09.4]} 32... Qh3+ {[%clk 0:00:15.9]} 33. Ke2 {[%clk
0:00:09.7]} 33... Qg4+ {[%clk 0:00:16.1]} 34. Kf1 {[%clk 0:00:09.2]} 1/2-1/2

[Event "Late-Titled-Tuesday-Blitz-January-16-2024"]
[Site "Chess.com"]
[Date "2024.01.16"]
[Round "6"]
[White "chessisveryfun1264"]
[Black "LikeWater"]
[Result "0-1"]
[WhiteElo "2583"]
[BlackElo "2794"]
[TimeControl "180+1"]
[EndTime "15:03:33 PST"]
[Termination "LikeWater won by resignation"]

1. Nf3 {[%clk 0:03:00.9]} 1... e6 {[%clk 0:02:58.8]} 2. c4 {[%clk 0:02:59.8]}
2... d5 {[%clk 0:02:58.2]} 3. d4 {[%clk 0:02:58.1]} 3... Nf6 {[%clk 0:02:57.6]}
4. g3 {[%clk 0:02:57.9]} 4... Be7 {[%clk 0:02:56.4]} 5. Bg2 {[%clk 0:02:57.8]}
5... O-O {[%clk 0:02:56.5]} 6. O-O {[%clk 0:02:57.3]} 6... dxc4 {[%clk
0:02:56.7]} 7. a4 {[%clk 0:02:55.5]} 7... Bd7 {[%clk 0:02:45.6]} 8. Nbd2 {[%clk
0:02:52.2]} 8... c5 {[%clk 0:02:31.7]} 9. Nxc4 {[%clk 0:02:51.1]} 9... Nc6
{[%clk 0:02:31.8]} 10. Bf4 {[%clk 0:02:47.2]} 10... Nd5 {[%clk 0:02:30.3]} 11.
Bd6 {[%clk 0:02:35.7]} 11... cxd4 {[%clk 0:02:19.2]} 12. Nxd4 {[%clk 0:02:34.7]}
12... Rc8 {[%clk 0:02:18.8]} 13. e4 {[%clk 0:02:30.5]} 13... Nb6 {[%clk
0:02:15.7]} 14. Nxb6 {[%clk 0:02:21.6]} 14... Qxb6 {[%clk 0:01:57.3]} 15. Nb5
{[%clk 0:01:42.2]} 15... Rfd8 {[%clk 0:01:50.1]} 16. Qh5 {[%clk 0:01:35.3]}
16... a6 {[%clk 0:01:45.3]} 17. Bxe7 {[%clk 0:01:35.1]} 17... Nxe7 {[%clk
0:01:46.2]} 18. Nc3 {[%clk 0:01:22.8]} 18... Qxb2 {[%clk 0:01:44.7]} 19. Ne2
{[%clk 0:01:19.7]} 19... b5 {[%clk 0:01:31.9]} 20. axb5 {[%clk 0:01:18.9]} 20...
Bxb5 {[%clk 0:01:31.8]} 21. Rfe1 {[%clk 0:01:12.3]} 21... Rd2 {[%clk 0:01:29.4]}
22. Rab1 {[%clk 0:01:09]} 22... Bxe2 {[%clk 0:01:28.1]} 23. Qg5 {[%clk
0:01:06.5]} 23... Qd4 {[%clk 0:01:05.8]} 24. Qxe7 {[%clk 0:00:50.1]} 24... Bd3
{[%clk 0:01:04.8]} 25. Rf1 {[%clk 0:00:38.3]} 25... Bxb1 {[%clk 0:00:54.7]} 26.
Qb7 {[%clk 0:00:38.8]} 26... Rcc2 {[%clk 0:00:38.5]} 27. Qxb1 {[%clk 0:00:37.9]}
27... g6 {[%clk 0:00:33.1]} 28. Qb8+ {[%clk 0:00:34.3]} 28... Kg7 {[%clk
0:00:33]} 29. Qf4 {[%clk 0:00:35.2]} 29... e5 {[%clk 0:00:31.9]} 30. Qf3 {[%clk
0:00:35.2]} 30... a5 {[%clk 0:00:30.4]} 31. h4 {[%clk 0:00:34.6]} 31... h5
{[%clk 0:00:29.6]} 32. g4 {[%clk 0:00:32.6]} 32... hxg4 {[%clk 0:00:28.9]} 33.
Qg3 {[%clk 0:00:33.3]} 33... a4 {[%clk 0:00:27.7]} 34. Kh1 {[%clk 0:00:20.2]}
34... Rxf2 {[%clk 0:00:26.5]} 35. Rxf2 {[%clk 0:00:20]} 35... Qxf2 {[%clk
0:00:24]} 36. Qxe5+ {[%clk 0:00:20.5]} 36... Kh7 {[%clk 0:00:23.9]} 0-1

[Event "Late-Titled-Tuesday-Blitz-January-16-2024"]
[Site "Chess.com"]
[Date "2024.01.16"]
[Round "6"]
[White "NovakRatko"]
[Black "KamilGrycel"]
[Result "1-0"]
[WhiteElo "2328"]
[BlackElo "2507"]
[TimeControl "180+1"]
[EndTime "15:03:33 PST"]
[Termination "NovakRatko won by resignation"]

1. d4 {[%clk 0:02:59.2]} 1... d6 {[%clk 0:02:59.5]} 2. c4 {[%clk 0:02:59.7]}
2... e5 {[%clk 0:02:59.4]} 3. d5 {[%clk 0:02:59.8]} 3... a5 {[%clk 0:02:59.5]}
4. e4 {[%clk 0:02:59.8]} 4... Na6 {[%clk 0:02:59.5]} 5. f4 {[%clk 0:02:59.8]}
5... exf4 {[%clk 0:02:57.9]} 6. Bxf4 {[%clk 0:02:59.6]} 6... Nc5 {[%clk
0:02:45.9]} 7. Nc3 {[%clk 0:02:59.1]} 7... g6 {[%clk 0:02:39.6]} 8. e5 {[%clk
0:02:49.2]} 8... dxe5 {[%clk 0:02:14.3]} 9. Bxe5 {[%clk 0:02:46.3]} 9... Qe7
{[%clk 0:02:13.2]} 10. Qe2 {[%clk 0:02:45.7]} 10... f6 {[%clk 0:02:11.5]} 11.
Bxc7 {[%clk 0:02:38.8]} 11... Nd3+ {[%clk 0:02:05.1]} 12. Kd2 {[%clk 0:02:38.5]}
12... Ne5 {[%clk 0:01:17]} 13. Nb5 {[%clk 0:01:35.2]} 13... Bh6+ {[%clk
0:01:14.8]} 14. Kd1 {[%clk 0:01:33.8]} 14... Bg4 {[%clk 0:01:07.6]} 15. Nf3
{[%clk 0:01:13.2]} 15... Kd7 {[%clk 0:00:52.7]} 16. Nxe5+ {[%clk 0:00:59.2]}
16... fxe5 {[%clk 0:00:44]} 17. Qxg4+ {[%clk 0:00:58.6]} 17... Ke8 {[%clk
0:00:43.7]} 18. Qe6 {[%clk 0:00:32.1]} 18... Qxe6 {[%clk 0:00:40.6]} 19. dxe6
{[%clk 0:00:31.9]} 19... Ke7 {[%clk 0:00:41.2]} 20. Bxe5 {[%clk 0:00:31.3]}
20... Nf6 {[%clk 0:00:40.5]} 21. Bd3 {[%clk 0:00:25.6]} 21... Rad8 {[%clk
0:00:38.3]} 22. Kc2 {[%clk 0:00:25.3]} 22... Kxe6 {[%clk 0:00:37.9]} 23. Rae1
{[%clk 0:00:24.4]} 23... Rhf8 {[%clk 0:00:33.6]} 24. Bc7+ {[%clk 0:00:22.6]}
24... Kf7 {[%clk 0:00:32.5]} 25. Bxd8 {[%clk 0:00:23]} 25... Rxd8 {[%clk
0:00:33.4]} 26. Rhf1 {[%clk 0:00:23.2]} 26... Bg7 {[%clk 0:00:33.8]} 27. Be4
{[%clk 0:00:19.7]} 27... b6 {[%clk 0:00:32.8]} 28. Bd5+ {[%clk 0:00:19.1]} 28...
Kf8 {[%clk 0:00:33.4]} 29. g4 {[%clk 0:00:18.5]} 29... h6 {[%clk 0:00:33.4]} 30.
Nc7 {[%clk 0:00:18.7]} 30... Rd6 {[%clk 0:00:30.2]} 31. Ne6+ {[%clk 0:00:18.9]}
31... Kf7 {[%clk 0:00:30.6]} 32. Nxg7+ {[%clk 0:00:19.5]} 32... Kxg7 {[%clk
0:00:31.4]} 33. Re7+ {[%clk 0:00:20.1]} 33... Kf8 {[%clk 0:00:31.6]} 34. Re6
{[%clk 0:00:19.8]} 34... Rxe6 {[%clk 0:00:29.4]} 35. Bxe6 {[%clk 0:00:20.1]}
35... Ke7 {[%clk 0:00:30.3]} 36. Bc8 {[%clk 0:00:17.2]} 36... Ne4 {[%clk
0:00:30]} 37. Re1 {[%clk 0:00:17]} 37... Kd8 {[%clk 0:00:29.3]} 38. Rxe4 {[%clk
0:00:17.2]} 1-0

[Event "Late-Titled-Tuesday-Blitz-January-16-2024"]
[Site "Chess.com"]
[Date "2024.01.16"]
[Round "6"]
[White "NikolaGry"]
[Black "DeArron_Fox"]
[Result "1-0"]
[WhiteElo "2752"]
[BlackElo "2455"]
[TimeControl "180+1"]
[EndTime "15:03:35 PST"]
[Termination "NikolaGry won by resignation"]

1. d4 {[%clk 0:03:00.9]} 1... d5 {[%clk 0:02:59.8]} 2. Bg5 {[%clk 0:02:58.8]}
2... c5 {[%clk 0:02:57]} 3. c3 {[%clk 0:02:56.5]} 3... Nc6 {[%clk 0:02:55.8]} 4.
Nf3 {[%clk 0:02:51.8]} 4... Qb6 {[%clk 0:02:37.4]} 5. Bc1 {[%clk 0:02:51.3]}
5... Bg4 {[%clk 0:02:25.8]} 6. e3 {[%clk 0:02:46.8]} 6... e5 {[%clk 0:02:13.7]}
7. dxe5 {[%clk 0:02:40.4]} 7... Nxe5 {[%clk 0:02:13.4]} 8. Nbd2 {[%clk
0:02:35.2]} 8... Nf6 {[%clk 0:02:03.8]} 9. Qb3 {[%clk 0:02:26.1]} 9... Nxf3+
{[%clk 0:01:36.9]} 10. Nxf3 {[%clk 0:02:14.7]} 10... c4 {[%clk 0:01:30.8]} 11.
Qa4+ {[%clk 0:02:01.3]} 11... Bd7 {[%clk 0:01:29.4]} 12. Qc2 {[%clk 0:02:00.3]}
12... Bd6 {[%clk 0:01:24.6]} 13. g3 {[%clk 0:01:53.3]} 13... Ne4 {[%clk
0:00:44.5]} 14. Bg2 {[%clk 0:01:51.7]} 14... h6 {[%clk 0:00:30.4]} 15. Nd4
{[%clk 0:01:45]} 15... O-O {[%clk 0:00:21.8]} 16. O-O {[%clk 0:01:43.5]} 16...
Rfe8 {[%clk 0:00:16.9]} 17. Rd1 {[%clk 0:01:38]} 17... Rad8 {[%clk 0:00:05.5]}
18. b3 {[%clk 0:01:34.8]} 18... cxb3 {[%clk 0:00:03]} 19. axb3 {[%clk
0:01:34.5]} 19... Be5 {[%clk 0:00:02.3]} 20. c4 {[%clk 0:01:28.2]} 20... Bg4
{[%clk 0:00:02.3]} 21. f3 {[%clk 0:01:27.6]} 21... Bxd4 {[%clk 0:00:01.8]} 22.
exd4 {[%clk 0:01:21.7]} 22... Bf5 {[%clk 0:00:02.1]} 23. fxe4 {[%clk 0:01:20.3]}
23... dxe4 {[%clk 0:00:02.7]} 24. Be3 {[%clk 0:01:10.4]} 24... Qg6 {[%clk
0:00:03.2]} 25. Rxa7 {[%clk 0:01:06.3]} 25... b5 {[%clk 0:00:03.5]} 26. d5
{[%clk 0:00:58.8]} 26... bxc4 {[%clk 0:00:03.2]} 27. bxc4 {[%clk 0:00:59]} 27...
h5 {[%clk 0:00:02.8]} 28. Qf2 {[%clk 0:00:51.9]} 28... Bg4 {[%clk 0:00:02]} 29.
Rf1 {[%clk 0:00:50.3]} 29... f5 {[%clk 0:00:01.9]} 30. Bd4 {[%clk 0:00:36.7]}
30... e3 {[%clk 0:00:01.3]} 31. Qf4 {[%clk 0:00:29.6]} 31... e2 {[%clk
0:00:01.4]} 32. Re1 {[%clk 0:00:29.7]} 32... Rf8 {[%clk 0:00:01.1]} 33. Rxg7+
{[%clk 0:00:26.7]} 33... Qxg7 {[%clk 0:00:02]} 34. Bxg7 {[%clk 0:00:26.5]} 34...
Kxg7 {[%clk 0:00:02.9]} 35. h3 {[%clk 0:00:26.8]} 1-0

[Event "Late-Titled-Tuesday-Blitz-January-16-2024"]
[Site "Chess.com"]
[Date "2024.01.16"]
[Round "6"]
[White "smotherhubbard"]
[Black "stregachess"]
[Result "1-0"]
[WhiteElo "2337"]
[BlackElo "2062"]
[TimeControl "180+1"]
[EndTime "15:03:38 PST"]
[Termination "smotherhubbard won on time"]

1. d4 {[%clk 0:03:00.9]} 1... Nf6 {[%clk 0:02:59.3]} 2. c4 {[%clk 0:02:59.7]}
2... e5 {[%clk 0:02:58.6]} 3. dxe5 {[%clk 0:02:59.2]} 3... Ne4 {[%clk
0:02:58.6]} 4. Nf3 {[%clk 0:02:57.2]} 4... Bb4+ {[%clk 0:02:58]} 5. Nbd2 {[%clk
0:02:55.7]} 5... Nc6 {[%clk 0:02:57.7]} 6. a3 {[%clk 0:02:55.1]} 6... Bxd2+
{[%clk 0:02:57.8]} 7. Bxd2 {[%clk 0:02:55.6]} 7... Nxd2 {[%clk 0:02:57.5]} 8.
Qxd2 {[%clk 0:02:56.5]} 8... Qe7 {[%clk 0:02:57.6]} 9. Qf4 {[%clk 0:02:53.5]}
9... O-O {[%clk 0:02:46.1]} 10. O-O-O {[%clk 0:02:40.3]} 10... Re8 {[%clk
0:02:44.3]} 11. Rd5 {[%clk 0:02:39.6]} 11... a5 {[%clk 0:02:37.2]} 12. e3 {[%clk
0:02:30.4]} 12... b6 {[%clk 0:02:27]} 13. Bd3 {[%clk 0:02:29]} 13... h6 {[%clk
0:02:26.6]} 14. h4 {[%clk 0:01:53.2]} 14... Qe6 {[%clk 0:01:40.3]} 15. Bf5
{[%clk 0:01:27.8]} 15... Qe7 {[%clk 0:01:23.5]} 16. Rh3 {[%clk 0:01:27]} 16...
Nd8 {[%clk 0:01:18.1]} 17. Rg3 {[%clk 0:01:22.3]} 17... Kh8 {[%clk 0:01:11.9]}
18. Qg4 {[%clk 0:00:39.4]} 18... Ne6 {[%clk 0:01:11.1]} 19. Qh5 {[%clk
0:00:27.5]} 19... Bb7 {[%clk 0:01:03.4]} 20. Ng5 {[%clk 0:00:19.6]} 20... Rf8
{[%clk 0:00:53.1]} 21. Rd2 {[%clk 0:00:17.8]} 21... d6 {[%clk 0:00:33.3]} 22.
exd6 {[%clk 0:00:17]} 22... cxd6 {[%clk 0:00:33.4]} 23. Bxe6 {[%clk 0:00:17]}
23... fxe6 {[%clk 0:00:32.2]} 24. Qg6 {[%clk 0:00:16.8]} 24... hxg5 {[%clk
0:00:21]} 25. hxg5 {[%clk 0:00:17.7]} 25... Rf5 {[%clk 0:00:16.5]} 26. Rh3+
{[%clk 0:00:17.4]} 26... Kg8 {[%clk 0:00:16.9]} 27. Qh7+ {[%clk 0:00:16.7]}
27... Kf7 {[%clk 0:00:17]} 28. Qh5+ {[%clk 0:00:12.6]} 28... Kf8 {[%clk
0:00:15.1]} 29. e4 {[%clk 0:00:12.5]} 29... Bxe4 {[%clk 0:00:12.4]} 30. g4
{[%clk 0:00:12]} 30... Rxg5 {[%clk 0:00:06.8]} 31. Qh8+ {[%clk 0:00:11.1]} 31...
Kf7 {[%clk 0:00:07]} 32. Qh4 {[%clk 0:00:11.6]} 1-0